bitfinex/quotes_SOLUSD_20250315
["timestamp","ask_amount","ask_price","bid_price","bid_amount"]
[1742014784215,7.3994,135.15,135.11,61.28349714]
[1742014785296,18.97928715,135.15,135.11,61.28349714]
[1742014788427,11.57988715,135.14,135.11,61.28349714]
[1742014790022,18.98008715,135.14,135.11,61.28349714]
[1742014794323,11.57988715,135.14,135.11,61.28349714]
[1742014794530,18.97868715,135.16,135.11,72.86338429]
[1742014795410,18.97868715,135.16,135.11,70.86338429]
[1742014796717,11.57988715,135.14,135.11,59.28349714]
[1742014797841,7.4002,135.13,135.11,59.28349714]
[1742014802235,7.3997,135.14,135.11,59.28349714]
[1742014803335,11.57988715,135.15,135.11,59.28349714]
[1742014803541,25.8904,135.19,135.11,70.86338429]
[1742014803838,11.57988715,135.17,135.11,70.86338429]
[1742014804039,11.57988715,135.17,135.11,70.92638429]
[1742014804537,18.97678715,135.19,135.13,11.57988715]
[1742014804706,18.97678715,135.19,135.14,6.72]
[1742014804905,18.97678715,135.19,135.14,66.00349714]
[1742014805502,7.3969,135.19,135.14,77.58338429]
[1742014806028,18.97678715,135.19,135.14,66.00349714]
[1742014807437,7.3969,135.19,135.14,77.58338429]
[1742014807625,204.73,135.2,135.16,11.57988715]
[1742014807930,11.57988715,135.19,135.14,84.98298429]
[1742014809731,223.70648715,135.2,135.15,11.57988715]
[1742014810420,223.70648715,135.2,135.15,18.97898715]
[1742014810616,204.73,135.2,135.15,18.97898715]
[1742014811337,204.73,135.2,135.16,11.57988715]
[1742014811714,0.03,135.2,135.17,11.57988715]
[1742014812026,0.03,135.2,135.17,70.86338429]
[1742014812210,0.03,135.2,135.17,78.26118429]
[1742014812405,0.03,135.2,135.18,11.57988715]
[1742014812607,0.03,135.2,135.19,6.7]
[1742014813538,0.03,135.2,135.18,11.57988715]
[1742014813539,0.03,135.2,135.17,76.77919714]
[1742014813836,0.03,135.2,135.18,6.7]
[1742014817637,0.03,135.2,135.18,65.98349714]
[1742014818845,11.60988715,135.2,135.18,65.98349714]
[1742014819145,11.57988715,135.19,135.18,65.98349714]
[1742014819938,11.57988715,135.19,135.18,59.28349714]
[1742014820935,18.97678715,135.19,135.18,59.28349714]
[1742014823535,37.46918715,135.19,135.12,59.28349714]
[1742014823827,11.57988715,135.15,135.12,59.28349714]
[1742014824035,11.57988715,135.14,135.12,59.28349714]
[1742014824842,7.4002,135.13,135.12,59.28349714]
[1742014829043,18.97968715,135.14,135.12,59.28349714]
[1742014829224,7.3988,135.16,135.12,59.28349714]
[1742014829430,18.97868715,135.16,135.12,59.28349714]
[1742014830245,11.57988715,135.15,135.12,59.28349714]
[1742014831132,18.97918715,135.15,135.12,59.28349714]
[1742014831849,11.57988715,135.14,135.12,59.28349714]
[1742014833036,11.57988715,135.15,135.12,59.28349714]
[1742014834456,18.97938715,135.15,135.12,59.28349714]
[1742014835054,11.57988715,135.14,135.12,59.28349714]
[1742014836353,11.57988715,135.13,135.12,59.28349714]
[1742014839235,18.97988715,135.14,135.12,59.28349714]
[1742014841946,11.57988715,135.13,135.12,59.28349714]
[1742014845761,18.97988715,135.14,135.12,59.28349714]
[1742014846366,11.57988715,135.14,135.12,59.28349714]
[1742014850073,11.57988715,135.13,135.12,59.28349714]
[1742014850661,11.57988715,135.13,135.11,0.063]
[1742014850858,11.57988715,135.12,135.11,0.063]
[1742014851860,18.98068715,135.12,135.11,0.063]
[1742014858867,11.57988715,135.12,135.11,0.063]
[1742014859184,18.98068715,135.12,135.11,0.063]
[1742014866870,24.70198715,135.12,135.11,0.063]
[1742014868192,43.35163601,135.12,135.11,0.063]
[1742014868363,24.70198715,135.12,135.11,0.063]
[1742014869473,43.63595915,135.12,135.11,0.063]
[1742014869898,20.0,135.09,135.04,59.28349714]
[1742014870185,11.57988715,135.07,135.04,59.28349714]
[1742014870695,11.57988715,135.06,135.04,59.28349714]
[1742014871179,11.57988715,135.05,135.0,0.2]
[1742014871487,11.57988715,135.04,135.0,66.18349714]
[1742014872383,11.57988715,135.06,135.0,85.17048429]
[1742014873389,11.57988715,135.05,135.0,85.17048429]
[1742014873975,11.57988715,135.05,135.0,85.23348429]
[1742014875188,11.57988715,135.05,135.0,59.54649714]
[1742014875189,11.57988715,135.03,135.0,59.54649714]
[1742014875389,7.4047,135.05,135.0,0.263]
[1742014875390,18.64964886,135.02,135.0,0.263]
[1742014875591,11.57988715,135.01,135.0,0.263]
[1742014876003,18.98668715,135.01,135.0,0.263]
[1742014879290,37.63633601,135.01,135.0,0.263]
[1742014879592,18.98668715,135.01,135.0,0.263]
[1742014879787,20.0,134.98,134.92,2.5510815]
[1742014879989,11.57988715,134.95,134.92,2.5510815]
[1742014880294,11.57988715,134.97,134.92,2.5510815]
[1742014880600,11.57988715,134.97,134.92,9.2510815]
[1742014881185,11.57988715,134.96,134.92,2.5510815]
[1742014881402,11.57988715,134.94,134.92,2.5510815]
[1742014881601,11.57988715,134.93,134.92,2.5510815]
[1742014881798,11.57988715,134.94,134.92,2.5510815]
[1742014882480,11.57988715,134.93,134.92,2.5510815]
[1742014884507,18.99108715,134.93,134.92,2.5510815]
[1742014888094,18.99108715,134.93,134.91,0.063]
[1742014888095,18.933972,134.92,134.91,0.063]
[1742014888294,30.37169758,134.92,134.91,0.063]
[1742014888695,11.57988715,134.92,134.91,0.063]
[1742014890309,18.99158715,134.92,134.91,0.063]
[1742014896119,19.13374872,134.92,134.91,0.063]
[1742014896421,37.78339758,134.92,134.91,0.063]
[1742014897207,18.99158715,134.92,134.91,0.063]
[1742014899612,19.02158715,134.92,134.91,0.063]
[1742014901027,11.60988715,134.92,134.87,11.57988715]
[1742014901244,11.60988715,134.92,134.87,70.86338429]
[1742014902103,19.02168715,134.92,134.87,78.27768429]
[1742014902324,19.02168715,134.92,134.87,59.28349714]
[1742014902932,11.57988715,134.91,134.87,59.28349714]
[1742014905038,18.99218715,134.91,134.87,59.28349714]
[1742014905816,11.57988715,134.91,134.87,59.28349714]
[1742014908233,18.99218715,134.91,134.87,59.28349714]
[1742014908528,11.57988715,134.9,134.87,59.28349714]
[1742014909033,18.99278715,134.9,134.87,59.28349714]
[1742014909426,11.57988715,134.9,134.87,59.28349714]
[1742014910438,11.57988715,134.91,134.87,66.69789714]
[1742014910613,11.57988715,134.91,134.87,59.28349714]
[1742014911130,18.99228715,134.91,134.87,59.28349714]
[1742014911337,18.99228715,134.91,134.87,59.34649714]
[1742014915644,11.57988715,134.91,134.87,59.34649714]
[1742014915841,11.57988715,134.88,134.87,0.063]
[1742014917320,18.99378715,134.88,134.87,0.063]
[1742014920738,18.99378715,134.88,134.77,5.78407625]
[1742014920739,63.02049758,134.88,134.77,5.78407625]
[1742014920947,11.57988715,134.83,134.78,11.57988715]
[1742014921119,11.57988715,134.83,134.78,70.86338429]
[1742014921326,11.57988715,134.84,134.78,70.86338429]
[1742014922628,11.57988715,134.84,134.78,78.28278429]
[1742014923047,11.57988715,134.84,134.79,11.57988715]
[1742014923346,18.99618715,134.84,134.78,70.92638429]
[1742014923547,20.0,134.85,134.79,35.65998715]
[1742014923842,11.57988715,134.84,134.79,35.65998715]
[1742014924429,11.57988715,134.83,134.79,24.0801]
[1742014924628,11.57988715,134.84,134.79,24.0801]
[1742014925652,11.57988715,134.84,134.79,35.65998715]
[1742014926052,38.99558715,134.85,134.79,94.94348429]
[1742014926452,38.99558715,134.85,134.79,88.24348429]
[1742014926756,11.57988715,134.84,134.79,88.24348429]
[1742014927241,11.57988715,134.84,134.79,76.66359714]
[1742014927433,11.57988715,134.83,134.79,76.66359714]
[1742014928450,18.99658715,134.83,134.79,59.28349714]
[1742014929648,11.57988715,134.83,134.79,59.28349714]
[1742014931952,11.57988715,134.85,134.8,11.57988715]
[1742014933154,11.57988715,134.85,134.8,78.28148429]
[1742014933535,11.57988715,134.86,134.81,11.57988715]
[1742014933739,11.57988715,134.86,134.81,70.86338429]
[1742014934129,11.57988715,134.86,134.81,59.28349714]
[1742014934533,11.57988715,134.86,134.81,70.86338429]
[1742014934930,230.13081043,134.9,134.82,17.35648715]
[1742014935135,11.57988715,134.89,134.84,11.57988715]
[1742014935536,11.57988715,134.89,134.84,70.86338429]
[1742014936359,0.03,134.87,134.84,70.86338429]
[1742014936741,0.03,134.87,134.84,59.28349714]
[1742014936941,0.03,134.87,134.84,66.69959714]
[1742014937763,0.03,134.87,134.84,78.27948429]
[1742014939355,0.03,134.87,134.85,11.57988715]
[1742014940971,0.03,134.87,134.86,7.415]
[1742014942167,11.60988715,134.87,134.83,59.28349714]
[1742014942348,11.57988715,134.84,134.81,59.28349714]
[1742014943659,11.57988715,134.85,134.81,59.28349714]
[1742014945357,18.99558715,134.85,134.81,59.28349714]
[1742014945654,11.57988715,134.84,134.81,59.28349714]
[1742014947671,11.57988715,134.85,134.81,59.28349714]
[1742014948448,11.57988715,134.84,134.81,59.28349714]
[1742014949158,11.57988715,134.85,134.81,59.28349714]
[1742014949360,11.57988715,134.82,134.81,0.063]
[1742014949953,18.99708715,134.82,134.81,0.063]
[1742014951276,43.64399758,134.82,134.81,0.063]
[1742014952282,24.85218715,134.82,134.81,0.063]
[1742014953171,71.17173575,134.82,134.81,0.063]
[1742014955256,24.85218715,134.82,134.81,0.063]
[1742014957183,13.2723,134.82,134.81,0.063]
[1742014957390,236.001,134.84,134.81,0.063]
[1742014957391,18.99658715,134.83,134.81,0.063]
[1742014957562,205.2,134.84,134.81,6.763]
[1742014957758,11.57988715,134.84,134.81,6.763]
[1742014958165,18.99638715,134.84,134.81,6.763]
[1742014958373,11.57988715,134.83,134.81,6.763]
[1742014958860,11.57988715,134.83,134.81,0.063]
[1742014959060,11.57988715,134.83,134.81,6.763]
[1742014959274,11.57988715,134.82,134.81,0.063]
[1742014959888,11.57988715,134.83,134.81,0.063]
[1742014961051,18.99658715,134.83,134.81,0.063]
[1742014961474,11.57988715,134.84,134.81,0.063]
[1742014963062,7.4446,134.87,134.81,0.063]
[1742014963262,11.57988715,134.86,134.81,0.063]
[1742014963968,11.57988715,134.85,134.81,0.063]
[1742014965082,18.99508715,134.86,134.81,0.063]
[1742014966669,11.57988715,134.85,134.81,0.063]
[1742014967085,11.57988715,134.85,134.81,59.34649714]
[1742014967383,18.99508715,134.86,134.81,59.34649714]
[1742014967784,11.57988715,134.86,134.81,66.76399714]
[1742014968280,11.57988715,134.86,134.81,78.34388429]
[1742014968682,11.57988715,134.86,134.81,0.063]
[1742014968683,31.57988715,134.82,134.81,0.063]
[1742014968892,31.57988715,134.82,134.78,0.063]
[1742014969060,11.57988715,134.8,134.78,0.063]
[1742014970383,18.99848715,134.8,134.78,0.063]
[1742014970988,11.57988715,134.82,134.78,6.763]
[1742014971164,11.57988715,134.83,134.78,6.763]
[1742014972788,18.99688715,134.83,134.78,6.763]
[1742014973166,11.57988715,134.82,134.78,6.763]
[1742014973690,18.99688715,134.83,134.78,6.763]
[1742014974294,25.67177938,134.83,134.78,6.763]
[1742014975392,18.5672,134.87,134.79,24.35257938]
[1742014975602,18.25477938,134.86,134.8,18.25477938]
[1742014975780,25.66977938,134.86,134.8,18.25477938]
[1742014975979,7.415,134.86,134.8,18.25477938]
[1742014976992,25.66977938,134.86,134.8,18.25477938]
[1742014978790,25.66977938,134.86,134.8,77.53827652]
[1742014979094,44.20747938,134.86,134.8,77.53827652]
[1742014979586,18.25477938,134.83,134.8,59.28349714]
[1742014981189,18.25477938,134.84,134.8,59.28349714]
[1742014981588,7.4167,134.83,134.8,59.28349714]
[1742014983078,25.67147938,134.83,134.8,59.28349714]
[1742014983278,18.25477938,134.82,134.8,59.28349714]
[1742014984006,18.25477938,134.82,134.78,0.063]
[1742014984007,0.14216157,134.79,134.78,0.063]
[1742014984174,37.04658981,134.79,134.78,0.063]
[1742014985194,44.46548981,134.79,134.78,0.063]
[1742014985507,18.64964886,134.78,134.71,59.28349714]
[1742014985683,18.25477938,134.74,134.71,59.28349714]
[1742014986379,18.25477938,134.73,134.71,59.28349714]
[1742014986590,18.25477938,134.74,134.71,59.28349714]
[1742014991013,18.25477938,134.75,134.71,59.28349714]
[1742014995517,25.67547938,134.76,134.71,59.28349714]
[1742014995706,25.67547938,134.76,134.71,66.70659714]
[1742014995905,25.67547938,134.76,134.71,84.96137652]
[1742014996312,25.67547938,134.76,134.71,77.53827652]
[1742014997416,18.25477938,134.76,134.71,84.96127652]
[1742014997596,25.67497938,134.77,134.71,84.96127652]
[1742014997916,18.25477938,134.76,134.71,84.96127652]
[1742014998310,11.69521196,134.76,134.71,66.76949714]
[1742014998922,19.11601196,134.76,134.71,66.76949714]
[1742015000019,11.69521196,134.75,134.71,59.34649714]
[1742015001194,19.11651196,134.75,134.71,59.34649714]
[1742015003213,7.4194,134.78,134.71,59.34649714]
[1742015003397,11.69521196,134.75,134.71,59.34649714]
[1742015003805,11.69521196,134.75,134.71,66.04649714]
[1742015004016,11.69521196,134.73,134.71,66.04649714]
[1742015004198,11.69521196,134.74,134.71,6.763]
[1742015004398,11.69521196,134.75,134.71,6.763]
[1742015005402,11.69521196,134.74,134.71,6.763]
[1742015006621,18.69086157,134.78,134.71,6.763]
[1742015006797,11.69521196,134.75,134.71,6.763]
[1742015008147,19.11621196,134.76,134.71,6.763]
[1742015011628,19.11621196,134.76,134.71,18.45821196]
[1742015015321,11.69521196,134.75,134.71,6.763]
[1742015015528,19.11641196,134.75,134.71,6.763]
[1742015016708,0.14216157,134.83,134.74,29.02601196]
[1742015016904,11.69521196,134.81,134.76,11.69521196]
[1742015017114,11.69521196,134.8,134.76,6.7]
[1742015017310,11.69521196,134.78,134.76,6.7]
[1742015018324,11.69521196,134.79,134.76,6.7]
[1742015018624,7.4194,134.78,134.76,6.7]
[1742015020826,19.11351196,134.8,134.76,6.7]
[1742015021211,11.69521196,134.77,134.71,0.063]
[1742015021411,11.69521196,134.75,134.71,0.063]
[1742015022933,19.11651196,134.75,134.71,0.063]
[1742015023614,7.4213,134.75,134.71,6.763]
[1742015024315,11.69521196,134.75,134.71,6.763]
[1742015025431,19.11671196,134.75,134.71,0.063]
[1742015029244,11.69521196,134.74,134.71,0.063]
[1742015031243,7.4222,134.73,134.71,0.063]
[1742015033429,7.4219,134.74,134.71,0.063]
[1742015034926,30.48702239,134.72,134.71,0.063]
[1742015035331,19.11801196,134.72,134.71,0.063]
[1742015035931,7.4228,134.72,134.71,0.063]
[1742015036535,7.4224,134.73,134.71,0.063]
[1742015036746,7.4217,134.74,134.71,0.063]
[1742015038245,19.11691196,134.74,134.71,0.063]
[1742015040349,11.69521196,134.73,134.71,0.063]
[1742015040735,19.11691196,134.74,134.71,0.063]
[1742015042250,11.69521196,134.73,134.71,0.063]
[1742015042422,19.11771196,134.73,134.71,0.063]
[1742015046551,7.4225,134.73,134.71,0.063]
[1742015047169,19.11771196,134.73,134.71,0.063]
[1742015047932,48.15198396,134.72,134.65,2.5510815]
[1742015048257,11.69521196,134.67,134.65,2.5510815]
[1742015048629,19.12101196,134.67,134.65,2.5510815]
[1742015049542,11.69521196,134.66,134.65,2.5510815]
[1742015050548,19.12101196,134.67,134.65,2.5510815]
[1742015051451,19.12031196,134.68,134.65,2.5510815]
[1742015052259,11.69521196,134.67,134.65,2.5510815]
[1742015052445,11.69521196,134.66,134.65,2.5510815]
[1742015052645,19.12131196,134.66,134.65,2.5510815]
[1742015052855,19.12081196,134.67,134.65,2.5510815]
[1742015053051,11.69521196,134.67,134.65,2.5510815]
[1742015053362,19.12081196,134.67,134.65,2.5510815]
[1742015054260,0.14216157,134.69,134.65,2.5510815]
[1742015054261,11.69521196,134.68,134.65,2.5510815]
[1742015057062,19.12021196,134.68,134.65,2.5510815]
[1742015057256,224.51961196,134.7,134.65,2.5510815]
[1742015058866,224.51961196,134.7,134.65,9.9776815]
[1742015059070,224.51961196,134.7,134.65,10.0406815]
[1742015059869,11.69521196,134.69,134.65,10.0406815]
[1742015060863,217.09521196,134.7,134.65,10.0406815]
[1742015061170,224.51911196,134.7,134.65,10.0406815]
[1742015061857,11.69521196,134.69,134.65,10.0406815]
[1742015062470,217.09521196,134.7,134.65,10.0406815]
[1742015063076,11.69521196,134.69,134.65,2.6140815]
[1742015065776,224.51911196,134.7,134.65,10.0403815]
[1742015065957,217.09521196,134.7,134.65,10.0403815]
[1742015066273,224.51911196,134.7,134.65,2.6140815]
[1742015068854,224.51911196,134.7,134.65,21.73569346]
[1742015069577,19.11911196,134.7,134.65,10.0404815]
[1742015069973,11.69521196,134.69,134.65,2.6140815]
[1742015070684,19.11971196,134.69,134.65,2.6140815]
[1742015071079,11.69521196,134.67,134.65,2.6140815]
[1742015071378,11.69521196,134.66,134.58,11.69521196]
[1742015071558,11.69521196,134.65,134.6,11.69521196]
[1742015072053,11.69521196,134.65,134.59,11.69521196]
[1742015072257,11.69521196,134.64,134.59,11.69521196]
[1742015072884,19.12261196,134.64,134.59,11.69521196]
[1742015073084,19.12181196,134.65,134.6,11.69521196]
[1742015073383,19.12181196,134.65,134.59,11.69521196]
[1742015075259,11.69521196,134.64,134.58,11.69521196]
[1742015076588,7.4277,134.63,134.58,11.69521196]
[1742015080788,7.4277,134.63,134.59,11.69521196]
[1742015081294,19.12291196,134.63,134.57,71.0417091]
[1742015082182,19.12291196,134.63,134.58,0.063]
[1742015082371,11.69521196,134.59,134.58,0.063]
[1742015083094,11.69521196,134.6,134.58,0.063]
[1742015083690,7.4288,134.61,134.58,0.063]
[1742015084390,11.69521196,134.62,134.58,0.063]
[1742015084569,19.12351196,134.62,134.58,0.063]
[1742015085096,11.69521196,134.62,134.58,0.063]
[1742015085482,19.12351196,134.62,134.58,0.063]
[1742015088498,19.12351196,134.62,134.56,16.52121196]
[1742015088993,11.69521196,134.61,134.56,6.7]
[1742015089203,11.69521196,134.6,134.56,6.7]
[1742015089997,11.69521196,134.59,134.56,6.7]
[1742015090186,11.69521196,134.59,134.53,18.39521196]
[1742015090384,11.69521196,134.59,134.53,25.82841196]
[1742015090588,19.12571196,134.59,134.53,18.39521196]
[1742015090907,19.12571196,134.59,134.53,25.82841196]
[1742015091977,11.69521196,134.58,134.53,6.7]
[1742015092300,11.69521196,134.58,134.53,18.39521196]
[1742015092706,11.69521196,134.58,134.53,25.82841196]
[1742015093207,19.12591196,134.58,134.53,11.69521196]
[1742015093504,11.69521196,134.56,134.51,80.96858411]
[1742015093699,11.69521196,134.57,134.51,80.96858411]
[1742015094103,11.69521196,134.57,134.52,11.69521196]
[1742015094607,7.4307,134.58,134.53,7.4332]
[1742015094903,19.12591196,134.58,134.53,7.4332]
[1742015095477,19.12591196,134.58,134.52,19.12891196]
[1742015095677,19.12591196,134.58,134.52,19.19191196]
[1742015095678,11.69521196,134.57,134.52,19.19191196]
[1742015096677,19.12621196,134.57,134.52,19.19191196]
[1742015098305,5.9828,134.56,134.52,19.19191196]
[1742015098502,11.69521196,134.54,134.52,0.063]
[1742015099399,11.69521196,134.55,134.52,0.063]
[1742015099606,19.12771196,134.55,134.52,0.063]
[1742015105207,11.69521196,134.54,134.52,0.063]
[1742015106806,19.12771196,134.55,134.52,0.063]
[1742015106988,7.4325,134.55,134.52,0.063]
[1742015107501,19.12771196,134.55,134.52,0.063]
[1742015111116,11.69521196,134.54,134.52,0.063]
[1742015112004,19.12831196,134.54,134.52,0.063]
[1742015112313,11.69521196,134.53,134.52,0.063]
[1742015114289,19.12841196,134.53,134.52,0.063]
[1742015115311,7.4332,134.53,134.52,0.063]
[1742015115521,19.12841196,134.53,134.52,0.063]
[1742015122222,38.06238396,134.53,134.52,0.063]
[1742015126131,37.92022239,134.53,134.52,0.063]
[1742015131630,37.92022239,134.53,134.4,211.25588148]
[1742015131631,24.680472,134.52,134.42,70.9787091]
[1742015131930,11.69521196,134.44,134.38,68.53457864]
[1742015132133,11.69521196,134.44,134.39,11.69521196]
[1742015132331,11.69521196,134.45,134.4,11.69521196]
[1742015132637,11.69521196,134.46,134.41,11.69521196]
[1742015133313,11.69521196,134.45,134.4,29.13181196]
[1742015134216,11.69521196,134.45,134.4,36.57221196]
[1742015134531,11.69521196,134.45,134.41,11.69521196]
[1742015135130,11.69521196,134.45,134.4,36.57221196]
[1742015137333,11.69521196,134.45,134.4,95.8557091]
[1742015137638,11.69521196,134.46,134.41,11.69521196]
[1742015138637,11.69521196,134.46,134.41,19.13501196]
[1742015139927,19.13231196,134.46,134.41,19.13501196]
[1742015140124,11.69521196,134.45,134.41,11.69521196]
[1742015141320,19.13231196,134.46,134.41,11.69521196]
[1742015142539,19.13231196,134.46,134.41,11.75821196]
[1742015142713,11.69521196,134.46,134.42,11.69521196]
[1742015142920,19.13191196,134.47,134.42,11.69521196]
[1742015144930,11.69521196,134.46,134.41,66.78629714]
[1742015145132,11.69521196,134.46,134.42,11.69521196]
[1742015146325,11.69521196,134.46,134.42,25.83451196]
[1742015146534,19.13141196,134.48,134.43,11.69521196]
[1742015146731,19.13141196,134.48,134.44,11.69521196]
[1742015147046,19.13141196,134.48,134.43,11.69521196]
[1742015148348,19.13141196,134.48,134.43,19.13391196]
[1742015151147,11.69521196,134.48,134.43,19.13391196]
[1742015151754,11.69521196,134.48,134.43,78.4174091]
[1742015152124,19.13131196,134.48,134.43,78.4174091]
[1742015154552,11.69521196,134.48,134.43,78.4174091]
[1742015154949,18.5845,134.53,134.47,11.69521196]
[1742015155251,17.54551196,134.54,134.49,11.69521196]
[1742015155453,11.69521196,134.53,134.48,18.39521196]
[1742015156261,0.03,134.51,134.48,18.39521196]
[1742015156430,0.03,134.51,134.49,11.69521196]
[1742015156626,0.03,134.51,134.48,18.39521196]
[1742015159054,0.03,134.51,134.48,25.83121196]
[1742015160560,0.03,134.51,134.49,11.69521196]
[1742015160856,0.03,134.51,134.48,85.1147091]
[1742015162140,0.03,134.51,134.5,11.69521196]
[1742015162340,0.03,134.51,134.5,70.9787091]
[1742015164056,0.03,134.51,134.5,78.4136091]
[1742015167358,0.03,134.51,134.5,78.55577067]
[1742015168252,0.03,134.51,134.5,97.8475811]
[1742015168443,0.03,134.51,134.5,78.55577067]
[1742015168851,0.03,134.51,134.5,70.9787091]
[1742015169369,0.03,134.56,134.53,20.0]
[1742015169541,0.03,134.56,134.55,11.69521196]
[1742015170965,0.03,134.56,134.53,59.25349714]
[1742015171262,0.03,134.56,134.54,11.69521196]
[1742015172872,0.03,134.56,134.55,11.69521196]
[1742015173072,0.03,134.56,134.54,11.69521196]
[1742015175171,0.03,134.56,134.55,11.69521196]
[1742015175369,5.6674,134.55,134.49,59.25349714]
[1742015175668,11.69521196,134.53,134.49,59.25349714]
[1742015176375,7.4338,134.52,134.49,59.25349714]
[1742015176674,1.5631,134.49,134.43,71.0117091]
[1742015176971,13.25831196,134.49,134.43,71.0117091]
[1742015177174,1.5631,134.49,134.44,11.69521196]
[1742015177555,1.5631,134.49,134.46,11.69521196]
[1742015177772,1.5631,134.49,134.46,70.9487091]
[1742015178268,1.5631,134.49,134.46,59.25349714]
[1742015180362,18.34278394,134.47,134.43,0.063]
[1742015180555,18.34278394,134.46,134.43,0.063]
[1742015181069,18.34278394,134.47,134.43,0.063]
[1742015181659,18.34278394,134.47,134.44,0.063]
[1742015182366,18.34278394,134.46,134.44,0.063]
[1742015182962,18.34278394,134.47,134.44,0.063]
[1742015184673,7.4371,134.46,134.44,0.063]
[1742015185278,25.77988394,134.46,134.44,0.063]
[1742015186874,31.77320708,134.45,134.41,0.063]
[1742015187071,18.34278394,134.42,134.41,0.063]
[1742015187270,18.34278394,134.43,134.41,0.063]
[1742015187473,18.34278394,134.44,134.41,0.063]
[1742015188176,18.34278394,134.43,134.41,0.063]
[1742015188679,18.34278394,134.44,134.41,0.063]
[1742015189774,19.90588394,134.45,134.41,0.063]
[1742015190263,18.34278394,134.44,134.41,0.063]
[1742015190780,27.34368394,134.45,134.41,0.063]
[1742015190969,18.34278394,134.44,134.41,0.063]
[1742015191154,18.34278394,134.43,134.41,0.063]
[1742015191675,18.34278394,134.44,134.41,0.063]
[1742015191886,19.90588394,134.45,134.41,0.063]
[1742015193280,27.34358394,134.45,134.41,0.063]
[1742015193477,18.34278394,134.44,134.41,0.063]
[1742015193783,18.34278394,134.43,134.41,0.063]
[1742015194277,21.537,134.39,134.38,2.6140815]
[1742015194465,21.537,134.39,134.3,18.34278394]
[1742015194466,1.537,134.38,134.3,18.34278394]
[1742015194658,18.34278394,134.36,134.3,77.59628108]
[1742015194979,18.34278394,134.36,134.31,6.78]
[1742015195876,25.78548394,134.36,134.31,6.78]
[1742015196259,18.34278394,134.35,134.31,6.78]
[1742015196777,7.4427,134.36,134.31,6.78]
[1742015196976,18.34278394,134.32,134.25,59.25349714]
[1742015197154,18.34278394,134.31,134.26,18.34278394]
[1742015197354,18.34278394,134.32,134.26,18.34278394]
[1742015197985,25.78768394,134.32,134.26,18.34278394]
[1742015199071,18.34278394,134.32,134.26,18.34278394]
[1742015199881,38.62710708,134.27,134.18,59.25349714]
[1742015200071,1.537,134.28,134.18,77.59628108]
[1742015200072,18.34278394,134.24,134.18,77.59628108]
[1742015200269,18.34278394,134.26,134.2,18.34278394]
[1742015200662,18.34278394,134.26,134.2,84.43628108]
[1742015200968,18.34278394,134.26,134.2,91.88768108]
[1742015201173,18.34278394,134.21,134.17,0.063]
[1742015201375,18.34278394,134.23,134.17,77.65928108]
[1742015201563,26.45108394,134.25,134.19,18.34278394]
[1742015201764,18.34278394,134.24,134.19,59.25349714]
[1742015202278,1.537,134.25,134.21,18.34278394]
[1742015202667,1.67916157,134.25,134.17,59.31649714]
[1742015202992,18.34278394,134.22,134.17,59.31649714]
[1742015203391,18.34278394,134.22,134.17,84.63928108]
[1742015203604,1.537,134.25,134.2,18.34278394]
[1742015203893,1.537,134.25,134.21,18.34278394]
[1742015204070,1.537,134.25,134.22,7.0]
[1742015204275,1.537,134.25,134.23,7.0]
[1742015207700,1.537,134.25,134.23,36.45605125]
[1742015208401,1.537,134.25,134.23,43.90585125]
[1742015208588,8.2171,134.29,134.24,29.45605125]
[1742015209405,8.2171,134.29,134.24,36.90525125]
[1742015209581,8.2171,134.29,134.17,18.85481043]
[1742015209582,1.6458,134.24,134.17,0.063]
[1742015209783,31.10185125,134.24,134.17,0.063]
[1742015209984,29.45605125,134.22,134.17,59.31649714]
[1742015210300,29.45605125,134.22,134.18,7.04]
[1742015210510,29.45605125,134.23,134.18,7.04]
[1742015210713,29.45605125,134.22,134.18,7.04]
[1742015211013,36.00775125,134.21,134.17,0.063]
[1742015211684,29.45605125,134.22,134.17,0.063]
[1742015212302,29.45605125,134.22,134.17,7.103]
[1742015213798,7.451,134.21,134.17,7.103]
[1742015214201,29.45605125,134.2,134.17,0.063]
[1742015214400,7.4505,134.22,134.17,0.063]
[1742015214702,36.90655125,134.22,134.17,0.063]
[1742015215199,29.45605125,134.19,134.17,0.063]
[1742015215377,29.45605125,134.2,134.17,0.063]